[Event "Titled Tuesday Blitz December 20 Early 2022"]
[White "Tologon tegin, Semetei"]
[Black "Begmuratov, Khumoyun"]
[WhiteFideId "13800574"]
[BlackFideId "14210207"]
[WhiteElo "2372"]
[BlackElo "2387"]
[Result "0-1"]
[Round "04"]
[TimeControl "180+2"]
[Date "2022.12.20"]
[WhiteClock "0:00:10"]
[BlackClock "0:00:07"]

1. e4 {[%clk 0:02:44]}  e5 {[%clk 0:02:59]} 2. Nc3 {[%clk 0:02:43]}  Nf6 {[%clk 0:02:57]} 3. f4 {[%clk 0:02:43]}  d6 {[%clk 0:02:52]} 4. Nf3 {[%clk 0:02:41]}  Nc6 {[%clk 0:02:51]} 5. Bc4 {[%clk 0:02:41]}  Be7 {[%clk 0:02:49]} 6. d3 {[%clk 0:02:40]}  O-O {[%clk 0:02:48]} 7. O-O {[%clk 0:02:38]}  exf4 {[%clk 0:02:45]} 8. Bxf4 {[%clk 0:02:26]}  Na5 {[%clk 0:02:45]} 9. Bb3 {[%clk 0:02:26]}  Nxb3 {[%clk 0:02:44]} 10. axb3 {[%clk 0:02:27]}  Be6 {[%clk 0:02:36]} 11. Nd4 {[%clk 0:02:16]}  Qd7 {[%clk 0:02:31]} 12. Bg5 {[%clk 0:02:05]}  Ne8 {[%clk 0:02:08]} 13. Qd2 {[%clk 0:02:00]}  Bxg5 {[%clk 0:01:57]} 14. Qxg5 {[%clk 0:01:59]}  f6 {[%clk 0:01:58]} 15. Qh4 {[%clk 0:01:57]}  c6 {[%clk 0:01:54]} 16. Rf3 {[%clk 0:01:49]}  Nc7 {[%clk 0:01:43]} 17. Raf1 {[%clk 0:01:40]}  d5 {[%clk 0:01:38]} 18. Nf5 {[%clk 0:01:36]}  dxe4 {[%clk 0:01:23]} 19. Nxe4 {[%clk 0:01:36]}  Bxf5 {[%clk 0:01:11]} 20. Rxf5 {[%clk 0:01:34]}  Qd4+ {[%clk 0:00:50]} 21. Kh1 {[%clk 0:01:20]}  Qxb2 {[%clk 0:00:49]} 22. Qg3 {[%clk 0:01:13]}  Ne8 {[%clk 0:00:41]} 23. Rh5 {[%clk 0:00:50]}  Qxc2 {[%clk 0:00:27]} 24. Qh3 {[%clk 0:00:47]}  h6 {[%clk 0:00:21]} 25. Qe6+ {[%clk 0:00:43]}  Kh8 {[%clk 0:00:19]} 26. Qe7 {[%clk 0:00:43]}  Rg8 {[%clk 0:00:15]} 27. Rh3 {[%clk 0:00:17]}  Qe2 {[%clk 0:00:14]} 28. Rhf3 {[%clk 0:00:14]}  Rc8 {[%clk 0:00:10]} 29. Qxb7 {[%clk 0:00:09]}  Rc7 {[%clk 0:00:10]} 30. Qb4 {[%clk 0:00:08]}  c5 {[%clk 0:00:08]} 31. Qc4 {[%clk 0:00:08]}  Re7 {[%clk 0:00:07]} 32. Qd5 {[%clk 0:00:08]}  Re5 {[%clk 0:00:07]} 33. Qd7 {[%clk 0:00:08]}  a5 {[%clk 0:00:06]} 34. Qh3 {[%clk 0:00:07]}  Qb2 {[%clk 0:00:05]} 35. Nxf6 {[%clk 0:00:07]}  Nxf6 {[%clk 0:00:04]} 36. Rxf6 {[%clk 0:00:08]}  Re7 {[%clk 0:00:04]} 37. R6f3 {[%clk 0:00:07]}  Qxb3 {[%clk 0:00:04]} 38. Qf5 {[%clk 0:00:06]}  Qe6 {[%clk 0:00:04]} 39. Qxc5 {[%clk 0:00:06]}  a4 {[%clk 0:00:04]} 40. Qa5 {[%clk 0:00:06]}  Qb3 {[%clk 0:00:04]} 41. d4 {[%clk 0:00:05]}  Qc4 {[%clk 0:00:03]} 42. d5 {[%clk 0:00:04]}  Re5 {[%clk 0:00:03]} 43. h3 {[%clk 0:00:02]}  Rxd5 {[%clk 0:00:03]} 44. Qa7 {[%clk 0:00:03]}  Qc6 {[%clk 0:00:03]} 45. Rf7 {[%clk 0:00:02]}  Rdd8 {[%clk 0:00:02]} 46. Qf2 {[%clk 0:00:02]}  Qg6 {[%clk 0:00:02]} 47. Qf3 {[%clk 0:00:02]}  a3 {[%clk 0:00:03]} 48. Ra7 {[%clk 0:00:02]}  Qe6 {[%clk 0:00:02]} 49. Rxa3 {[%clk 0:00:03]}  Rde8 {[%clk 0:00:03]} 50. Rd3 {[%clk 0:00:03]}  Qg6 {[%clk 0:00:02]} 51. Qg3 {[%clk 0:00:03]}  Qe6 {[%clk 0:00:02]} 52. Rfd1 {[%clk 0:00:03]}  Qc6 {[%clk 0:00:03]} 53. Kh2 {[%clk 0:00:03]}  Qc2 {[%clk 0:00:03]} 54. R1d2 {[%clk 0:00:04]}  Qc4 {[%clk 0:00:04]} 55. Rd6 {[%clk 0:00:04]}  Qf7 {[%clk 0:00:03]} 56. R2d4 {[%clk 0:00:04]}  Kh7 {[%clk 0:00:03]} 57. Rh4 {[%clk 0:00:05]}  Re6 {[%clk 0:00:02]} 58. Qd3+ {[%clk 0:00:05]}  Kh8 {[%clk 0:00:03]} 59. Rd5 {[%clk 0:00:05]}  Qc7+ {[%clk 0:00:02]} 60. Qg3 {[%clk 0:00:05]}  Qf7 {[%clk 0:00:02]} 61. Rdh5 {[%clk 0:00:05]}  Rf6 {[%clk 0:00:03]} 62. Qe3 {[%clk 0:00:05]}  Rf8 {[%clk 0:00:03]} 63. Rxh6+ {[%clk 0:00:05]}  gxh6 {[%clk 0:00:03]} 64. Rxh6+ {[%clk 0:00:06]}  Rxh6 {[%clk 0:00:04]} 65. Qxh6+ {[%clk 0:00:06]}  Kg8 {[%clk 0:00:04]} 66. Qg5+ {[%clk 0:00:07]}  Qg7 {[%clk 0:00:05]} 67. Qd5+ {[%clk 0:00:07]}  Rf7 {[%clk 0:00:06]} 68. Qd8+ {[%clk 0:00:08]}  Kh7 {[%clk 0:00:06]} 69. Qh4+ {[%clk 0:00:08]}  Qh6 {[%clk 0:00:07]} 70. Qe4+ {[%clk 0:00:09]}  Qg6 {[%clk 0:00:07]} 71. Qh4+ {[%clk 0:00:10]}  Kg8 {[%clk 0:00:07]} 72. Qd8+ {[%clk 0:00:10]}  Rf8 {[%clk 0:00:08]} 73. Qd5+ {[%clk 0:00:10]}  Kg7 {[%clk 0:00:08]} 74. Qd7+ {[%clk 0:00:10]}  Rf7 {[%clk 0:00:07]} 75. Qd4+ {[%clk 0:00:10]}  Qf6 {[%clk 0:00:08]} 76. Qg4+ {[%clk 0:00:10]}  Kh6 {[%clk 0:00:07]} 0-1


[Site "https://www.chess.com"]

[Event "Titled Tuesday Blitz December 20 Early 2022"]
[White "Truequitos"]
[Black "AlexPapasimakopoulos"]
[WhiteElo "2536"]
[BlackElo "2708"]
[Result "0-1"]
[Round "04"]
[TimeControl "180+2"]
[Date "2022.12.20"]
[WhiteClock "0:00:03"]
[BlackClock "0:00:12"]

1. d4 {[%clk 0:03:00]}  e6 {[%clk 0:02:59]} 2. Nf3 {[%clk 0:03:00]}  Nf6 {[%clk 0:02:59]} 3. g3 {[%clk 0:03:00]}  b5 {[%clk 0:02:58]} 4. a4 {[%clk 0:02:59]}  b4 {[%clk 0:02:58]} 5. a5 {[%clk 0:02:59]}  Bb7 {[%clk 0:02:57]} 6. Bg2 {[%clk 0:02:59]}  Na6 {[%clk 0:02:56]} 7. O-O {[%clk 0:02:58]}  c5 {[%clk 0:02:57]} 8. c3 {[%clk 0:02:58]}  bxc3 {[%clk 0:02:56]} 9. bxc3 {[%clk 0:02:59]}  Be7 {[%clk 0:02:56]} 10. Qd3 {[%clk 0:02:53]}  cxd4 {[%clk 0:02:52]} 11. cxd4 {[%clk 0:02:48]}  Nb4 {[%clk 0:02:52]} 12. Qd1 {[%clk 0:02:36]}  O-O {[%clk 0:02:51]} 13. Ne5 {[%clk 0:02:32]}  Bxg2 {[%clk 0:02:49]} 14. Kxg2 {[%clk 0:02:33]}  d6 {[%clk 0:02:50]} 15. Nd3 {[%clk 0:02:32]}  Nc6 {[%clk 0:02:33]} 16. Qa4 {[%clk 0:02:25]}  Qd7 {[%clk 0:02:31]} 17. Na3 {[%clk 0:02:15]}  Rfc8 {[%clk 0:02:31]} 18. Bd2 {[%clk 0:02:11]}  Qb7 {[%clk 0:02:16]} 19. f3 {[%clk 0:02:04]}  a6 {[%clk 0:02:05]} 20. Rab1 {[%clk 0:02:03]}  Qa7 {[%clk 0:02:02]} 21. Rb6 {[%clk 0:02:03]}  Nb8 {[%clk 0:01:54]} 22. Rfb1 {[%clk 0:01:50]}  Qd7 {[%clk 0:01:49]} 23. Qb3 {[%clk 0:01:41]}  Nc6 {[%clk 0:01:43]} 24. e3 {[%clk 0:01:33]}  Bd8 {[%clk 0:01:35]} 25. Rb7 {[%clk 0:01:25]}  Rc7 {[%clk 0:01:35]} 26. Nc4 {[%clk 0:01:18]}  Nd5 {[%clk 0:01:16]} 27. Nb6 {[%clk 0:00:50]}  Rxb7 {[%clk 0:01:14]} 28. Nxd7 {[%clk 0:00:50]}  Rxb3 {[%clk 0:01:14]} 29. Rxb3 {[%clk 0:00:50]}  Bxa5 {[%clk 0:01:10]} 30. Bc1 {[%clk 0:00:35]}  Rd8 {[%clk 0:00:45]} 31. Rb7 {[%clk 0:00:31]}  Nc7 {[%clk 0:00:22]} 32. Nb6 {[%clk 0:00:28]}  Bxb6 {[%clk 0:00:19]} 33. Rxb6 {[%clk 0:00:29]}  Na5 {[%clk 0:00:18]} 34. Nb4 {[%clk 0:00:23]}  Kf8 {[%clk 0:00:13]} 35. Nxa6 {[%clk 0:00:18]}  Nxa6 {[%clk 0:00:14]} 36. Rxa6 {[%clk 0:00:19]}  Nc4 {[%clk 0:00:14]} 37. Rc6 {[%clk 0:00:18]}  d5 {[%clk 0:00:14]} 38. e4 {[%clk 0:00:17]}  h6 {[%clk 0:00:13]} 39. exd5 {[%clk 0:00:16]}  exd5 {[%clk 0:00:13]} 40. g4 {[%clk 0:00:16]}  Kg8 {[%clk 0:00:13]} 41. Kg3 {[%clk 0:00:16]}  Ra8 {[%clk 0:00:12]} 42. Rc5 {[%clk 0:00:13]}  g5 {[%clk 0:00:11]} 43. Rxd5 {[%clk 0:00:12]}  Ra1 {[%clk 0:00:12]} 44. Rc5 {[%clk 0:00:05]}  Rxc1 {[%clk 0:00:11]} 45. d5 {[%clk 0:00:06]}  Kf8 {[%clk 0:00:11]} 46. Rc7 {[%clk 0:00:06]}  Rc2 {[%clk 0:00:10]} 47. d6 {[%clk 0:00:06]}  Ne3 {[%clk 0:00:10]} 48. d7 {[%clk 0:00:03]}  Ke7 {[%clk 0:00:11]} 49. d8=Q+ {[%clk 0:00:03]}  Kxd8 {[%clk 0:00:11]} 50. Rxf7 {[%clk 0:00:04]}  Nd5 {[%clk 0:00:11]} 51. Rh7 {[%clk 0:00:03]}  Nf4 {[%clk 0:00:12]} 52. Rh8+ {[%clk 0:00:02]}  Ke7 {[%clk 0:00:12]} 53. Rh7+ {[%clk 0:00:03]}  Kf8 {[%clk 0:00:12]} 0-1


[Site "https://www.chess.com"]

[Event "Titled Tuesday Blitz December 20 Early 2022"]
[White "Van der Nat, Nicholas"]
[Black "vladoboch"]
[WhiteFideId "14300427"]
[WhiteElo "2362"]
[BlackElo "2445"]
[Result "1-0"]
[Round "04"]
[TimeControl "180+2"]
[Date "2022.12.20"]
[WhiteClock "0:00:11"]
[BlackClock "0:00:02"]

1. c4 {[%clk 0:03:00]}  c5 {[%clk 0:02:59]} 2. g3 {[%clk 0:03:00]}  Nc6 {[%clk 0:02:59]} 3. Bg2 {[%clk 0:03:01]}  g6 {[%clk 0:03:00]} 4. Nc3 {[%clk 0:03:00]}  Bg7 {[%clk 0:03:00]} 5. Nf3 {[%clk 0:03:01]}  e5 {[%clk 0:03:00]} 6. O-O {[%clk 0:03:00]}  Nge7 {[%clk 0:03:01]} 7. d3 {[%clk 0:03:00]}  O-O {[%clk 0:02:59]} 8. Ne1 {[%clk 0:03:00]}  d6 {[%clk 0:02:55]} 9. Nc2 {[%clk 0:03:00]}  Be6 {[%clk 0:02:56]} 10. Nd5 {[%clk 0:02:59]}  Rb8 {[%clk 0:02:47]} 11. Rb1 {[%clk 0:02:58]}  a6 {[%clk 0:02:45]} 12. b3 {[%clk 0:02:45]}  b5 {[%clk 0:02:43]} 13. Bd2 {[%clk 0:02:12]}  h6 {[%clk 0:02:26]} 14. e3 {[%clk 0:01:39]}  Kh7 {[%clk 0:02:25]} 15. f4 {[%clk 0:01:38]}  f5 {[%clk 0:02:16]} 16. Qe2 {[%clk 0:01:33]}  Bg8 {[%clk 0:02:05]} 17. Rbe1 {[%clk 0:01:30]}  Nxd5 {[%clk 0:02:05]} 18. cxd5 {[%clk 0:01:30]}  Ne7 {[%clk 0:02:03]} 19. e4 {[%clk 0:01:30]}  Qc7 {[%clk 0:01:48]} 20. fxe5 {[%clk 0:01:22]}  Bxe5 {[%clk 0:01:46]} 21. Bf4 {[%clk 0:01:08]}  Bc3 {[%clk 0:01:28]} 22. Rc1 {[%clk 0:01:04]}  g5 {[%clk 0:01:20]} 23. Bd2 {[%clk 0:00:48]}  Bg7 {[%clk 0:01:05]} 24. Kh1 {[%clk 0:00:42]}  Kh8 {[%clk 0:01:04]} 25. Ne3 {[%clk 0:00:38]}  Rbe8 {[%clk 0:00:57]} 26. Qh5 {[%clk 0:00:23]}  Bf7 {[%clk 0:00:57]} 27. Qd1 {[%clk 0:00:22]}  Bg6 {[%clk 0:00:57]} 28. Nxf5 {[%clk 0:00:16]}  Nxf5 {[%clk 0:00:54]} 29. exf5 {[%clk 0:00:16]}  Bxf5 {[%clk 0:00:53]} 30. Bc3 {[%clk 0:00:10]}  Bxc3 {[%clk 0:00:46]} 31. Rxc3 {[%clk 0:00:11]}  Qg7 {[%clk 0:00:46]} 32. Rc2 {[%clk 0:00:10]}  Qd4 {[%clk 0:00:41]} 33. Rcf2 {[%clk 0:00:10]}  Re5 {[%clk 0:00:15]} 34. g4 {[%clk 0:00:09]}  Rfe8 {[%clk 0:00:14]} 35. gxf5 {[%clk 0:00:07]}  Re3 {[%clk 0:00:11]} 36. Qh5 {[%clk 0:00:07]}  Qf6 {[%clk 0:00:11]} 37. Qg6 {[%clk 0:00:05]}  Qxg6 {[%clk 0:00:06]} 38. fxg6 {[%clk 0:00:06]}  Kg7 {[%clk 0:00:06]} 39. Be4 {[%clk 0:00:06]}  R8xe4 {[%clk 0:00:02]} 40. dxe4 {[%clk 0:00:07]}  Rxe4 {[%clk 0:00:03]} 41. Rf7+ {[%clk 0:00:08]}  Kxg6 {[%clk 0:00:04]} 42. R7f6+ {[%clk 0:00:08]}  Kh5 {[%clk 0:00:05]} 43. Rxd6 {[%clk 0:00:09]}  Re2 {[%clk 0:00:04]} 44. Rc6 {[%clk 0:00:09]}  Rxa2 {[%clk 0:00:04]} 45. Rxc5 {[%clk 0:00:10]}  Rd2 {[%clk 0:00:04]} 46. b4 {[%clk 0:00:09]}  Rd4 {[%clk 0:00:04]} 47. Rfc1 {[%clk 0:00:09]}  g4 {[%clk 0:00:04]} 48. Rf1 {[%clk 0:00:09]}  Rxb4 {[%clk 0:00:03]} 49. d6+ {[%clk 0:00:09]}  Kh4 {[%clk 0:00:02]} 50. Rd5 {[%clk 0:00:10]}  Rb2 {[%clk 0:00:01]} 51. d7 {[%clk 0:00:10]}  Kh3 {[%clk 0:00:01]} 52. Rd3+ {[%clk 0:00:10]}  Kh4 {[%clk 0:00:01]} 53. d8=Q+ {[%clk 0:00:10]}  Kh5 {[%clk 0:00:02]} 54. Rd5+ {[%clk 0:00:10]}  Kg6 {[%clk 0:00:01]} 55. Qf6+ {[%clk 0:00:10]}  Kh7 {[%clk 0:00:02]} 56. Rd7+ {[%clk 0:00:10]}  Kg8 {[%clk 0:00:02]} 57. Qg7# {[%clk 0:00:11]} 1-0


[Site "https://www.chess.com"]

[Event "Titled Tuesday Blitz December 20 Early 2022"]
[White "Viktorin, Tomas"]
[Black "Ong, Chong Ghee"]
[WhiteFideId "328316"]
[BlackFideId "5800145"]
[WhiteElo "1971"]
[BlackElo "2307"]
[Result "1-0"]
[Round "04"]
[TimeControl "180+2"]
[Date "2022.12.20"]
[WhiteClock "0:01:18"]
[BlackClock "0:00:13"]

1. d4 {[%clk 0:03:00]}  e6 {[%clk 0:03:00]} 2. c4 {[%clk 0:02:58]}  d5 {[%clk 0:03:01]} 3. Nf3 {[%clk 0:02:56]}  f5 {[%clk 0:03:00]} 4. g3 {[%clk 0:02:56]}  Nf6 {[%clk 0:02:58]} 5. Bg2 {[%clk 0:02:56]}  c6 {[%clk 0:02:59]} 6. O-O {[%clk 0:02:57]}  Bd6 {[%clk 0:02:59]} 7. b3 {[%clk 0:02:58]}  Qe7 {[%clk 0:02:56]} 8. a4 {[%clk 0:02:58]}  O-O {[%clk 0:02:56]} 9. Ba3 {[%clk 0:02:58]}  Bxa3 {[%clk 0:02:57]} 10. Nxa3 {[%clk 0:02:59]}  Bd7 {[%clk 0:02:57]} 11. Nc2 {[%clk 0:02:59]}  Be8 {[%clk 0:02:57]} 12. e3 {[%clk 0:03:00]}  Bh5 {[%clk 0:02:57]} 13. Qd2 {[%clk 0:02:58]}  Bxf3 {[%clk 0:02:58]} 14. Bxf3 {[%clk 0:02:59]}  Nbd7 {[%clk 0:02:57]} 15. Qb4 {[%clk 0:02:58]}  Qxb4 {[%clk 0:02:48]} 16. Nxb4 {[%clk 0:02:59]}  a5 {[%clk 0:02:46]} 17. Nd3 {[%clk 0:02:58]}  Ne4 {[%clk 0:02:45]} 18. Bxe4 {[%clk 0:02:58]}  fxe4 {[%clk 0:02:46]} 19. Nf4 {[%clk 0:02:58]}  Rae8 {[%clk 0:02:41]} 20. Rab1 {[%clk 0:02:56]}  e5 {[%clk 0:02:39]} 21. dxe5 {[%clk 0:02:53]}  g5 {[%clk 0:02:27]} 22. Ne2 {[%clk 0:02:47]}  Nxe5 {[%clk 0:02:23]} 23. cxd5 {[%clk 0:02:46]}  cxd5 {[%clk 0:02:23]} 24. Kg2 {[%clk 0:02:24]}  Rc8 {[%clk 0:02:21]} 25. Rbc1 {[%clk 0:02:23]}  Nd3 {[%clk 0:02:15]} 26. Rc3 {[%clk 0:02:19]}  Rc6 {[%clk 0:02:01]} 27. f3 {[%clk 0:02:13]}  Rfc8 {[%clk 0:01:52]} 28. Rxc6 {[%clk 0:02:13]}  Rxc6 {[%clk 0:01:53]} 29. fxe4 {[%clk 0:02:13]}  dxe4 {[%clk 0:01:50]} 30. Nd4 {[%clk 0:02:13]}  Rc1 {[%clk 0:01:35]} 31. Rf5 {[%clk 0:02:07]}  h6 {[%clk 0:01:22]} 32. Kh3 {[%clk 0:02:03]}  Re1 {[%clk 0:01:21]} 33. Kg4 {[%clk 0:01:56]}  Rxe3 {[%clk 0:01:18]} 34. Kh5 {[%clk 0:01:57]}  Ne1 {[%clk 0:00:38]} 35. Kg6 {[%clk 0:01:55]}  g4 {[%clk 0:00:24]} 36. Ne6 {[%clk 0:01:41]}  Rf3 {[%clk 0:00:24]} 37. Rc5 {[%clk 0:01:40]}  Rf8 {[%clk 0:00:18]} 38. Nxf8 {[%clk 0:01:31]}  Kxf8 {[%clk 0:00:19]} 39. Kf6 {[%clk 0:01:26]}  Ke8 {[%clk 0:00:17]} 40. Re5+ {[%clk 0:01:24]}  Kd7 {[%clk 0:00:18]} 41. Rxe4 {[%clk 0:01:25]}  Nf3 {[%clk 0:00:18]} 42. Rxg4 {[%clk 0:01:24]}  Nxh2 {[%clk 0:00:17]} 43. Rg7+ {[%clk 0:01:19]}  Kc6 {[%clk 0:00:16]} 44. Kg6 {[%clk 0:01:20]}  Nf1 {[%clk 0:00:15]} 45. Kxh6 {[%clk 0:01:19]}  b5 {[%clk 0:00:14]} 46. Rg6+ {[%clk 0:01:18]}  Kc5 {[%clk 0:00:13]} 47. Rg5+ {[%clk 0:01:18]} 1-0


[Site "https://www.chess.com"]

[Event "Titled Tuesday Blitz December 20 Early 2022"]
[White "VitorBronson"]
[Black "RianKapriaga"]
[WhiteElo "2459"]
[BlackElo "2327"]
[Result "1-0"]
[Round "04"]
[TimeControl "180+2"]
[Date "2022.12.20"]
[WhiteClock "0:01:49"]
[BlackClock "0:00:02"]

1. e4 {[%clk 0:03:00]}  c6 {[%clk 0:02:59]} 2. d4 {[%clk 0:03:00]}  d5 {[%clk 0:02:59]} 3. exd5 {[%clk 0:02:59]}  cxd5 {[%clk 0:02:59]} 4. Bd3 {[%clk 0:02:59]}  Nc6 {[%clk 0:02:58]} 5. c3 {[%clk 0:02:59]}  Nf6 {[%clk 0:02:58]} 6. Ne2 {[%clk 0:02:56]}  Bg4 {[%clk 0:02:57]} 7. O-O {[%clk 0:02:55]}  e6 {[%clk 0:02:57]} 8. Qe1 {[%clk 0:02:55]}  Bd6 {[%clk 0:02:56]} 9. f3 {[%clk 0:02:55]}  Bh5 {[%clk 0:02:55]} 10. Qh4 {[%clk 0:02:48]}  O-O {[%clk 0:02:48]} 11. Bg5 {[%clk 0:02:47]}  Bg6 {[%clk 0:02:47]} 12. Bxg6 {[%clk 0:02:47]}  hxg6 {[%clk 0:02:47]} 13. Nd2 {[%clk 0:02:45]}  Rb8 {[%clk 0:02:43]} 14. f4 {[%clk 0:02:42]}  Be7 {[%clk 0:02:37]} 15. Nf3 {[%clk 0:02:41]}  Ne4 {[%clk 0:02:36]} 16. Bxe7 {[%clk 0:02:40]}  Qxe7 {[%clk 0:02:36]} 17. Qh3 {[%clk 0:02:40]}  Qd6 {[%clk 0:02:14]} 18. Ng3 {[%clk 0:02:39]}  Qxf4 {[%clk 0:02:00]} 19. Nxe4 {[%clk 0:02:39]}  dxe4 {[%clk 0:01:55]} 20. Ne5 {[%clk 0:02:38]}  Qh6 {[%clk 0:01:43]} 21. Qxh6 {[%clk 0:02:36]}  gxh6 {[%clk 0:01:42]} 22. Nd7 {[%clk 0:02:36]}  f5 {[%clk 0:01:36]} 23. Nxb8 {[%clk 0:02:36]}  Rxb8 {[%clk 0:01:35]} 24. Rad1 {[%clk 0:02:36]}  Ne7 {[%clk 0:01:33]} 25. c4 {[%clk 0:02:36]}  b5 {[%clk 0:01:29]} 26. d5 {[%clk 0:02:34]}  Kf7 {[%clk 0:01:16]} 27. d6 {[%clk 0:02:32]}  Nc6 {[%clk 0:01:15]} 28. cxb5 {[%clk 0:02:28]}  Rxb5 {[%clk 0:01:14]} 29. Rc1 {[%clk 0:02:28]}  Rb6 {[%clk 0:01:07]} 30. d7 {[%clk 0:02:20]}  Ke7 {[%clk 0:01:07]} 31. Rfd1 {[%clk 0:02:19]}  Nd8 {[%clk 0:01:03]} 32. b3 {[%clk 0:02:19]}  Rb7 {[%clk 0:01:01]} 33. Kf2 {[%clk 0:02:14]}  Rxd7 {[%clk 0:00:58]} 34. Rxd7+ {[%clk 0:02:13]}  Kxd7 {[%clk 0:00:58]} 35. Rc4 {[%clk 0:02:14]}  g5 {[%clk 0:00:53]} 36. Ra4 {[%clk 0:02:14]}  Nc6 {[%clk 0:00:53]} 37. Ke3 {[%clk 0:02:15]}  Kd6 {[%clk 0:00:50]} 38. b4 {[%clk 0:02:15]}  Kd5 {[%clk 0:00:46]} 39. b5 {[%clk 0:02:14]}  f4+ {[%clk 0:00:46]} 40. Kd2 {[%clk 0:02:12]}  Nd4 {[%clk 0:00:42]} 41. Rxa7 {[%clk 0:02:11]}  e3+ {[%clk 0:00:35]} 42. Ke1 {[%clk 0:02:06]}  Nxb5 {[%clk 0:00:30]} 43. Rd7+ {[%clk 0:02:06]}  Ke4 {[%clk 0:00:27]} 44. a4 {[%clk 0:02:03]}  Nc3 {[%clk 0:00:11]} 45. a5 {[%clk 0:02:03]}  g4 {[%clk 0:00:08]} 46. a6 {[%clk 0:02:02]}  f3 {[%clk 0:00:08]} 47. gxf3+ {[%clk 0:02:01]}  gxf3 {[%clk 0:00:08]} 48. a7 {[%clk 0:02:00]}  f2+ {[%clk 0:00:08]} 49. Kf1 {[%clk 0:02:01]}  Kf3 {[%clk 0:00:04]} 50. Rf7+ {[%clk 0:02:01]}  Ke4 {[%clk 0:00:03]} 51. a8=Q+ {[%clk 0:02:00]}  Nd5 {[%clk 0:00:03]} 52. Qc6 {[%clk 0:01:50]}  e5 {[%clk 0:00:02]} 53. Rd7 {[%clk 0:01:49]} 1-0


[Site "https://www.chess.com"]

[Event "Titled Tuesday Blitz December 20 Early 2022"]
[White "Volkov, Nikolay Nik."]
[Black "CaptainCasanova"]
[WhiteFideId "4176626"]
[WhiteElo "2123"]
[BlackElo "2584"]
[Result "0-1"]
[Round "04"]
[TimeControl "180+2"]
[Date "2022.12.20"]
[WhiteClock "0:00:02"]
[BlackClock "0:00:15"]

1. Nf3 {[%clk 0:02:58]}  b5 {[%clk 0:02:59]} 2. g3 {[%clk 0:02:50]}  Bb7 {[%clk 0:02:58]} 3. Bg2 {[%clk 0:02:51]}  Nf6 {[%clk 0:02:59]} 4. O-O {[%clk 0:02:51]}  g6 {[%clk 0:03:00]} 5. d4 {[%clk 0:02:49]}  Bg7 {[%clk 0:03:00]} 6. b3 {[%clk 0:02:48]}  O-O {[%clk 0:03:00]} 7. Bb2 {[%clk 0:02:49]}  a5 {[%clk 0:03:00]} 8. Nc3 {[%clk 0:02:43]}  b4 {[%clk 0:02:59]} 9. Nb1 {[%clk 0:02:24]}  d6 {[%clk 0:03:00]} 10. a4 {[%clk 0:02:23]}  c5 {[%clk 0:02:59]} 11. e3 {[%clk 0:02:16]}  Nbd7 {[%clk 0:02:56]} 12. Nbd2 {[%clk 0:02:14]}  Rc8 {[%clk 0:02:42]} 13. Qe2 {[%clk 0:01:59]}  Qb6 {[%clk 0:02:38]} 14. e4 {[%clk 0:01:51]}  Ba6 {[%clk 0:02:36]} 15. Nc4 {[%clk 0:01:51]}  Bxc4 {[%clk 0:02:15]} 16. bxc4 {[%clk 0:01:52]}  cxd4 {[%clk 0:02:12]} 17. Bxd4 {[%clk 0:01:53]}  Qc7 {[%clk 0:02:10]} 18. Nd2 {[%clk 0:01:50]}  e5 {[%clk 0:01:59]} 19. Be3 {[%clk 0:01:46]}  Nb6 {[%clk 0:01:59]} 20. Bxb6 {[%clk 0:01:45]}  Qxb6 {[%clk 0:02:00]} 21. Qd3 {[%clk 0:01:43]}  Rfd8 {[%clk 0:01:53]} 22. h3 {[%clk 0:01:40]}  Nd7 {[%clk 0:01:51]} 23. Rfd1 {[%clk 0:01:30]}  Nc5 {[%clk 0:01:50]} 24. Qd5 {[%clk 0:01:31]}  Qc7 {[%clk 0:01:38]} 25. Nb3 {[%clk 0:01:28]}  Ra8 {[%clk 0:01:06]} 26. Rd2 {[%clk 0:01:01]}  Bf6 {[%clk 0:01:02]} 27. Kh2 {[%clk 0:00:46]}  Kg7 {[%clk 0:01:02]} 28. Ra2 {[%clk 0:00:31]}  h5 {[%clk 0:01:01]} 29. h4 {[%clk 0:00:25]}  Qe7 {[%clk 0:00:51]} 30. Qc6 {[%clk 0:00:11]}  Ne6 {[%clk 0:00:29]} 31. Rd5 {[%clk 0:00:02]}  Rdc8 {[%clk 0:00:20]} 32. Qb5 {[%clk 0:00:02]}  Nc7 {[%clk 0:00:19]} 33. Qb6 {[%clk 0:00:01]}  Nxd5 {[%clk 0:00:20]} 34. cxd5 {[%clk 0:00:01]}  Qc7 {[%clk 0:00:18]} 35. Qe3 {[%clk 0:00:02]}  Qc3 {[%clk 0:00:17]} 36. Qe2 {[%clk 0:00:01]}  Kh6 {[%clk 0:00:15]} 37. Bf3 {[%clk 0:00:02]}  g5 {[%clk 0:00:14]} 38. hxg5+ {[%clk 0:00:01]}  Bxg5 {[%clk 0:00:15]} 39. Ra1 {[%clk 0:00:01]}  h4 {[%clk 0:00:15]} 40. gxh4 {[%clk 0:00:01]}  Bf4+ {[%clk 0:00:15]} 41. Kh3 {[%clk 0:00:01]}  Qxc2 {[%clk 0:00:14]} 42. Qxc2 {[%clk 0:00:01]}  Rxc2 {[%clk 0:00:14]} 43. Rg1 {[%clk 0:00:02]}  Rxf2 {[%clk 0:00:15]} 44. Bg4 {[%clk 0:00:02]}  Rh2# {[%clk 0:00:15]} 0-1


[Site "https://www.chess.com"]